No. of Trans,Dept Family,Entity Name,Cert Date,Supplier Name,Reference,Gross Amt,Group/Department,Type of Expenditure - Subjective Codes
1,DCMS,EH,22/10/2014,Feilden Clegg Bradley Studios LLP,0040082865,"75,978.00 ",Heritage Protection & Planning-Nat. Planning & Conservation,Commissioned Architects
2,DCMS,EH,03/10/2014,Carisbrooke Castle Museum Trust,0040081324,"26,417.00 ",National Collections-Historic Properties Department,Income Sharing Agreement
3,DCMS,EH,14/10/2014,W H Smith and R Ensor SAP Scheme,0040081564,"7,084.43 ",Resources-Office Estate,Insurance
4,DCMS,EH,14/10/2014,W H Smith and R Ensor SAP Scheme,0040081564,"35,516.40 ",Resources-Office Estate,Rent - Operating Leases
5,DCMS,EH,29/10/2014,Past Pleasures Ltd,0040082625,"34,610.40 ",National Collections-Historic Properties Department,Exhibits/Displays
6,DCMS,EH,20/10/2014,Gillards Worldwide,0040081811,"74,003.37 ",National Collections-Historic Properties Department,Marketing Distribution
7,DCMS,EH,14/10/2014,Gillards Worldwide,0040082410,"67,994.48 ",National Collections-Historic Properties Department,Marketing Distribution
8,DCMS,EH,17/10/2014,Historic Property Restoration Ltd,0040080911,"80,092.49 ",National Collections-Major Conservation Projects,Works for Heritage Buildings
9,DCMS,EH,16/10/2014,Historic Property Restoration Ltd,0040081080,"2,272.18 ",National Collections-Property Maintenance Programme,Annual Cyclical Work M & E
10,DCMS,EH,16/10/2014,Historic Property Restoration Ltd,0040081080,75.62 ,National Collections-Property Maintenance Programme,Leased Accomodation Maint
11,DCMS,EH,16/10/2014,Historic Property Restoration Ltd,0040081080,"10,315.82 ",National Collections-Property Maintenance Programme,Annual Cyclical Work M & E
12,DCMS,EH,16/10/2014,Historic Property Restoration Ltd,0040081080,"6,729.30 ",National Collections-Property Maintenance Programme,Annual Cyclical Works-Building
13,DCMS,EH,16/10/2014,Historic Property Restoration Ltd,0040081080,"9,692.09 ",National Collections-Property Maintenance Programme,Annual Cyclical Works-Building
14,DCMS,EH,29/10/2014,Historic Property Restoration Ltd,0040083204,"1,456.20 ",National Collections-Property Maintenance Programme,Leased Accomodation Maint
15,DCMS,EH,29/10/2014,Historic Property Restoration Ltd,0040083204,748.24 ,National Collections-Property Maintenance Programme,Annual Cyclical Work M & E
16,DCMS,EH,29/10/2014,Historic Property Restoration Ltd,0040083204,"3,910.69 ",National Collections-Property Maintenance Programme,Annual Cyclical Works-Building
17,DCMS,EH,29/10/2014,Historic Property Restoration Ltd,0040083204,"5,332.48 ",National Collections-Property Maintenance Programme,Annual Cyclical Works-Building
18,DCMS,EH,29/10/2014,Historic Property Restoration Ltd,0040083204,"20,286.74 ",National Collections-Property Maintenance Programme,Annual Cyclical Work M & E
19,DCMS,EH,14/10/2014,Cotswold Archaeology,0040071210,"30,000.00 ",Heritage Protection & Planning-Heritage Protection,Maritime Commissions
20,DCMS,EH,20/10/2014,Mail Marketing Scotland Ltd,0040082539,"32,357.60 ",National Collections-Marketing,Postage & Couriers
21,DCMS,EH,17/10/2014,Park Communications Ltd,0040082687,"32,862.00 ",National Advice & Information-NA&I Centre,Finished Guidebooks
22,DCMS,EH,27/10/2014,Go South Coast Ltd,0040081942,"28,489.63 ",National Collections-Historic Properties Department,Agency Staff
23,DCMS,EH,30/10/2014,Bunzl Catering Suppliers,0040081964,"194,144.46 ",National Collections-Historic Properties Department,Consumable Materials
24,DCMS,EH,30/10/2014,Bunzl Catering Suppliers,0040081964,"9,661.70 ",National Collections-Historic Properties Department,Consumable Materials
25,DCMS,EH,02/10/2014,HFS Environmental Ltd,0040080805,"43,200.00 ",National Collections-Property Maintenance Programme,Planned Maintenance
26,DCMS,EH,07/10/2014,Capita Secure Information Solutions Ltd,0040079641,"6,299.58 ",Resources-IMT,Computer Equipment <10k
27,DCMS,EH,07/10/2014,Capita Secure Information Solutions Ltd,0040079641,"43,069.72 ",Resources-IMT,Computer Equipment <10k
28,DCMS,EH,27/10/2014,Capita Secure Information Solutions Ltd,0040082655,"26,000.00 ",Resources-IMT,Technical Advisors
29,DCMS,EH,27/10/2014,Capita Secure Information Solutions Ltd,0040082655,"18,000.00 ",Resources-IMT,Technical Advisors
30,DCMS,EH,27/10/2014,Capita Secure Information Solutions Ltd,0040082655,"12,000.00 ",Resources-IMT,Computer Consultancy
31,DCMS,EH,22/10/2014,Capita Secure Information Solutions Ltd,0040082705,"34,073.98 ",Resources-IMT,ITFM
32,DCMS,EH,27/10/2014,Capita Secure Information Solutions Ltd,0040082706,"251,116.75 ",Resources-IMT,ITFM
33,DCMS,EH,21/10/2014,Capita Secure Information Solutions Ltd,0040082876,"47,285.52 ",Resources-IMT,System Developments <50k
34,DCMS,EH,20/10/2014,Lodge & Sons (Builders) Ltd,0040082301,"36,198.78 ",Heritage Protection & Planning-Nat. Planning & Conservation,Fees for Professional Advice
35,DCMS,EH,23/10/2014,G.J. Banks (I.W.) Ltd,0040082139,"6,777.26 ",National Collections-Capital Investment Programme,Fees for Professional Advice
36,DCMS,EH,23/10/2014,G.J. Banks (I.W.) Ltd,0040082139,"8,287.03 ",National Collections-Capital Investment Programme,WIP Professional Works Advice
37,DCMS,EH,23/10/2014,G.J. Banks (I.W.) Ltd,0040082139,"5,665.62 ",National Collections-Capital Investment Programme,WIP Professional Works Advice
38,DCMS,EH,23/10/2014,G.J. Banks (I.W.) Ltd,0040082139,"3,777.08 ",National Collections-Capital Investment Programme,Fees for Professional Advice
39,DCMS,EH,23/10/2014,G.J. Banks (I.W.) Ltd,0040082139,"1,710.00 ",National Collections-Capital Investment Programme,WIP Professional Works Advice
40,DCMS,EH,23/10/2014,G.J. Banks (I.W.) Ltd,0040082139,"19,219.38 ",National Collections-Capital Investment Programme,WIP Professional Works Advice
41,DCMS,EH,23/10/2014,G.J. Banks (I.W.) Ltd,0040082139,212.83 ,National Collections-Capital Investment Programme,Fees for Professional Advice
42,DCMS,EH,29/10/2014,G.J. Banks (I.W.) Ltd,0040083656,"4,793.28 ",National Collections-Capital Investment Programme,Fees for Professional Advice
43,DCMS,EH,29/10/2014,G.J. Banks (I.W.) Ltd,0040083656,"4,119.50 ",National Collections-Capital Investment Programme,Fees for Professional Advice
44,DCMS,EH,29/10/2014,G.J. Banks (I.W.) Ltd,0040083656,"3,890.18 ",National Collections-Capital Investment Programme,Fees for Professional Advice
45,DCMS,EH,29/10/2014,G.J. Banks (I.W.) Ltd,0040083656,"25,101.60 ",National Collections-Capital Investment Programme,Fees for Professional Advice
46,DCMS,EH,29/10/2014,G.J. Banks (I.W.) Ltd,0040083656,"1,348.43 ",National Collections-Capital Investment Programme,Fees for Professional Advice
47,DCMS,EH,29/10/2014,G.J. Banks (I.W.) Ltd,0040083656,"8,305.99 ",National Collections-Capital Investment Programme,WIP Professional Works Advice
48,DCMS,EH,29/10/2014,G.J. Banks (I.W.) Ltd,0040083656,"34,148.28 ",National Collections-Capital Investment Programme,WIP Professional Works Advice
49,DCMS,EH,29/10/2014,G.J. Banks (I.W.) Ltd,0040083656,"32,903.88 ",National Collections-Capital Investment Programme,WIP Professional Works Advice
50,DCMS,EH,29/10/2014,G.J. Banks (I.W.) Ltd,0040083656,"2,100.34 ",National Collections-Capital Investment Programme,WIP Professional Works Advice
51,DCMS,EH,29/10/2014,G.J. Banks (I.W.) Ltd,0040083656,"2,022.64 ",National Collections-Capital Investment Programme,WIP Professional Works Advice
52,DCMS,EH,29/10/2014,G.J. Banks (I.W.) Ltd,0040083656,"23,263.08 ",National Collections-Capital Investment Programme,WIP Professional Works Advice
53,DCMS,EH,22/10/2014,Specialist Computer Centres plc,0040083261,"41,601.60 ",Resources-IMT,Computer Equipment > 10k
54,DCMS,EH,22/10/2014,Specialist Computer Centres plc,0040083261,"2,728.80 ",Resources-IMT,Computer Equipment <10k
55,DCMS,EH,03/10/2014,Vinci Construction UK Ltd,0040079960,"13,860.00 ",National Collections-Capital Investment Programme,Works for Heritage Buildings
56,DCMS,EH,03/10/2014,Vinci Construction UK Ltd,0040079960,"4,494.00 ",National Collections-Capital Investment Programme,WIP Professional Works Advice
57,DCMS,EH,03/10/2014,Vinci Construction UK Ltd,0040079960,"105,961.20 ",National Collections-Capital Investment Programme,Works for Heritage Buildings
58,DCMS,EH,03/10/2014,Vinci Construction UK Ltd,0040079960,"20,048.40 ",National Collections-Capital Investment Programme,WIP Operational Building Works
59,DCMS,EH,03/10/2014,Vinci Construction UK Ltd,0040079960,"46,166.40 ",National Collections-Capital Investment Programme,WIP Operational Building Works
60,DCMS,EH,03/10/2014,Vinci Construction UK Ltd,0040079960,"15,752.40 ",National Collections-Capital Investment Programme,WIP Operational Building Works
61,DCMS,EH,29/10/2014,Vinci Construction UK Ltd,0040083653,"25,407.60 ",National Collections-Capital Investment Programme,Works for Heritage Buildings
62,DCMS,EH,29/10/2014,Vinci Construction UK Ltd,0040083653,"12,732.00 ",National Collections-Capital Investment Programme,WIP Professional Works Advice
63,DCMS,EH,29/10/2014,Vinci Construction UK Ltd,0040083653,"15,772.80 ",National Collections-Capital Investment Programme,Works for Heritage Buildings
64,DCMS,EH,29/10/2014,Vinci Construction UK Ltd,0040083653,"30,112.80 ",National Collections-Capital Investment Programme,WIP Operational Building Works
65,DCMS,EH,22/10/2014,K3 Retail & Business Solutions,0040070785,"25,457.28 ",Resources-IMT,WIP Systems Development
66,DCMS,EH,20/10/2014,33 Seconds Ltd,0040078514,"4,200.00 ",National Collections-Marketing,Marketing Creative
67,DCMS,EH,20/10/2014,33 Seconds Ltd,0040078514,"18,360.00 ",National Collections-Marketing,Digital
68,DCMS,EH,20/10/2014,33 Seconds Ltd,0040078514,"3,240.00 ",National Collections-Marketing,Evaluation
69,DCMS,EH,06/10/2014,Europa Facilities Management Limited,0040081137,192.94 ,Resources-Human Resources,Annual Cyclical Works-Building
70,DCMS,EH,06/10/2014,Europa Facilities Management Limited,0040081137,"9,765.28 ",Resources-Human Resources,Annual Cyclical Work M & E
71,DCMS,EH,06/10/2014,Europa Facilities Management Limited,0040081137,"5,763.00 ",Resources-Human Resources,Annual Cyclical Works-Building
72,DCMS,EH,06/10/2014,Europa Facilities Management Limited,0040081137,"6,236.70 ",Resources-Human Resources,Office Security & Cash Collect
73,DCMS,EH,06/10/2014,Europa Facilities Management Limited,0040081137,"10,628.48 ",Resources-Human Resources,Office Cleaning
74,DCMS,EH,22/10/2014,EDF,0020063019,"27,210.92 ",Resources-Corporate,Electricity
75,DCMS,EH,28/10/2014,University Of Bristol,0081003083,"25,000.00 ",Heritage Protection & Planning-Heritage Protection,ENABLING PROGRAMMES 
76,DCMS,EH,06/10/2014,Milton Keynes Council,0090513979,"121,716.00 ",Heritage Protection & Planning-Nat. Planning & Conservation,GRANTS PAYABLE AREA
77,DCMS,EH,06/10/2014,St John the Baptist PCC,0082003272,"60,300.00 ",Heritage Protection & Planning-Nat. Planning & Conservation,GRANTS PAYABLE PLACES OF WORSHIP
78,DCMS,EH,06/10/2014,St John the Baptist PCC,0082003273,"69,300.00 ",Heritage Protection & Planning-Nat. Planning & Conservation,GRANTS PAYABLE PLACES OF WORSHIP
79,DCMS,EH,07/10/2014,St Vincent de Paul Church,0082003294,"74,000.00 ",Heritage Protection & Planning-Nat. Planning & Conservation,GRANTS PAYABLE PLACES OF WORSHIP
80,DCMS,EH,07/10/2014,Birmingham Conservation Trust,0082003284,"33,750.00 ",Heritage Protection & Planning-Nat. Planning & Conservation,GRANTS PAYABLE HISTORIC BUILDINGS
81,DCMS,EH,07/10/2014,Birmingham Conservation Trust,0082003288,"30,000.00 ",Heritage Protection & Planning-Nat. Planning & Conservation,GRANTS PAYABLE HISTORIC BUILDINGS
82,DCMS,EH,17/10/2014,St John the Evangelist PCC,0082003318,"49,023.00 ",Heritage Protection & Planning-Nat. Planning & Conservation,GRANTS PAYABLE PLACES OF WORSHIP
83,DCMS,EH,15/10/2014,St Mary the Virgin Long Crendon PCC,0082003304,"48,600.00 ",Heritage Protection & Planning-Nat. Planning & Conservation,GRANTS PAYABLE PLACES OF WORSHIP
84,DCMS,EH,31/10/2014,PCC of High Bickington,0082003353,"35,000.00 ",Heritage Protection & Planning-Nat. Planning & Conservation,GRANTS PAYABLE PLACES OF WORSHIP
85,DCMS,EH,31/10/2014,PCC of St John Thornham,0082003358,"76,950.00 ",Heritage Protection & Planning-Nat. Planning & Conservation,GRANTS PAYABLE PLACES OF WORSHIP
86,DCMS,EH,15/10/2014,St Peter's PCC,0082003308,"62,000.00 ",Heritage Protection & Planning-Nat. Planning & Conservation,GRANTS PAYABLE PLACES OF WORSHIP
87,DCMS,EH,07/10/2014,PCC of Winwick,0082003289,"111,600.00 ",Heritage Protection & Planning-Nat. Planning & Conservation,GRANTS PAYABLE PLACES OF WORSHIP
88,DCMS,EH,24/10/2014,Swinton and Pendlebury PCC,0082003333,"41,900.00 ",Heritage Protection & Planning-Nat. Planning & Conservation,GRANTS PAYABLE PLACES OF WORSHIP
89,DCMS,EH,31/10/2014,Christ Church PCC,0082003355,"55,500.00 ",Heritage Protection & Planning-Nat. Planning & Conservation,GRANTS PAYABLE PLACES OF WORSHIP
90,DCMS,EH,06/10/2014,St Matthew's PCC,0082003281,"54,000.00 ",Heritage Protection & Planning-Nat. Planning & Conservation,GRANTS PAYABLE PLACES OF WORSHIP
91,DCMS,EH,07/10/2014,Disley PCC,0082003293,"25,500.00 ",Heritage Protection & Planning-Nat. Planning & Conservation,GRANTS PAYABLE PLACES OF WORSHIP
92,DCMS,EH,07/10/2014,St Francis Xavier Parish Council,0082003295,"40,000.00 ",Heritage Protection & Planning-Nat. Planning & Conservation,GRANTS PAYABLE PLACES OF WORSHIP
93,DCMS,EH,07/10/2014,PCC of Antrobus,0082003287,"36,450.00 ",Heritage Protection & Planning-Nat. Planning & Conservation,GRANTS PAYABLE PLACES OF WORSHIP
94,DCMS,EH,15/10/2014,Rector and Churchwardens of Badgworth,0082003298,"33,600.00 ",Heritage Protection & Planning-Nat. Planning & Conservation,GRANTS PAYABLE PLACES OF WORSHIP
95,DCMS,EH,17/10/2014,St Stephens Parochial Church Council,0082003319,"46,250.00 ",Heritage Protection & Planning-Nat. Planning & Conservation,GRANTS PAYABLE PLACES OF WORSHIP
96,DCMS,EH,15/10/2014,Hilton Hall Limited,0082003299,"33,643.00 ",Heritage Protection & Planning-Nat. Planning & Conservation,GRANTS PAYABLE HISTORIC BUILDINGS
97,DCMS,EH,15/10/2014,The National Trust,0082003300,"45,032.00 ",Heritage Protection & Planning-Nat. Planning & Conservation,GRANTS PAYABLE HISTORIC BUILDINGS
98,DCMS,EH,24/10/2014,Michael Hall School,0082003334,"25,000.00 ",Heritage Protection & Planning-Nat. Planning & Conservation,GRANTS PAYABLE HISTORIC BUILDINGS
99,DCMS,EH,21/10/2014,Lowther Castle & Gardens Trust,0082003327,"106,400.00 ",Heritage Protection & Planning-Nat. Planning & Conservation,GRANTS PAYABLE HISTORIC BUILDINGS
100,DCMS,EH,21/10/2014,St Peter Whetstone PCC,0082003328,"25,500.00 ",Heritage Protection & Planning-Nat. Planning & Conservation,GRANTS PAYABLE PLACES OF WORSHIP
101,DCMS,EH,28/10/2014,"PCC of St Augustine's, South Croydon",0082003347,"26,000.00 ",Heritage Protection & Planning-Nat. Planning & Conservation,GRANTS PAYABLE PLACES OF WORSHIP
102,DCMS,EH,15/10/2014,"Ockley, Okewood & Forest Green PCC",0082003302,"25,200.00 ",Heritage Protection & Planning-Nat. Planning & Conservation,GRANTS PAYABLE PLACES OF WORSHIP
103,DCMS,EH,31/10/2014,PCC  Of Wath Upon Dearne,0082003352,"41,848.00 ",Heritage Protection & Planning-Nat. Planning & Conservation,GRANTS PAYABLE PLACES OF WORSHIP
104,DCMS,EH,17/10/2014,"The Unitarian Chapel, Billingshurst",0082003314,"31,000.00 ",Heritage Protection & Planning-Nat. Planning & Conservation,GRANTS PAYABLE PLACES OF WORSHIP
105,DCMS,EH,06/10/2014,Parish of Warwick - St Nicholas,0082003282,"34,800.00 ",Heritage Protection & Planning-Nat. Planning & Conservation,GRANTS PAYABLE PLACES OF WORSHIP
106,DCMS,EH,15/10/2014,Hockham PCC,0082003303,"25,500.00 ",Heritage Protection & Planning-Nat. Planning & Conservation,GRANTS PAYABLE PLACES OF WORSHIP
107,DCMS,EH,24/10/2014,Edenham PCC,0082003335,"38,000.00 ",Heritage Protection & Planning-Nat. Planning & Conservation,GRANTS PAYABLE PLACES OF WORSHIP
108,DCMS,EH,06/10/2014,St Andrew's Church,0082003283,"35,000.00 ",Heritage Protection & Planning-Nat. Planning & Conservation,GRANTS PAYABLE PLACES OF WORSHIP
109,DCMS,EH,07/10/2014,Oratory of St Philip Neri,0082003292,"29,000.00 ",Heritage Protection & Planning-Nat. Planning & Conservation,GRANTS PAYABLE PLACES OF WORSHIP
110,DCMS,EH,17/10/2014,St Matthews PCC,0082003315,"31,500.00 ",Heritage Protection & Planning-Nat. Planning & Conservation,GRANTS PAYABLE PLACES OF WORSHIP
111,DCMS,EH,21/10/2014,Parish of St Walburge Restoration A/c,0082003330,"37,000.00 ",Heritage Protection & Planning-Nat. Planning & Conservation,GRANTS PAYABLE PLACES OF WORSHIP
112,DCMS,EH,31/10/2014,Stetchworth PCC,0082003356,"83,250.00 ",Heritage Protection & Planning-Nat. Planning & Conservation,GRANTS PAYABLE PLACES OF WORSHIP
113,DCMS,EH,31/10/2014,Ottery St Mary United Reformed Church,0082003357,"27,950.00 ",Heritage Protection & Planning-Nat. Planning & Conservation,GRANTS PAYABLE PLACES OF WORSHIP
114,DCMS,EH,07/10/2014,St Cuthberts PCC,0082003297,"33,300.00 ",Heritage Protection & Planning-Nat. Planning & Conservation,GRANTS PAYABLE PLACES OF WORSHIP
115,DCMS,EH,24/10/2014,Save Britain's Heritage,0082003339,"78,447.00 ",Heritage Protection & Planning-Nat. Planning & Conservation,GRANTS PAYABLE HISTORIC BUILDINGS
116,DCMS,EH,24/10/2014,R H Falkingham & Son,0082003340,"75,000.00 ",Heritage Protection & Planning-Nat. Planning & Conservation,GRANTS PAYABLE HISTORIC BUILDINGS
117,DCMS,EH,15/10/2014,Balagan Ltd,0001084787,"27,927.12 ",National Collections-Historic Properties Department,Goods & Souvenirs Purchases
